bitfinex-derivatives/quotes_BTCF0:USTF0_20241224
["timestamp","ask_amount","ask_price","bid_price","bid_amount"]
[1735055574406,0.1595,98002.0,97990.0,0.36132]
[1735055574607,0.1595,98002.0,97995.0,0.051071]
[1735055574803,0.009,97999.0,97995.0,0.051071]
[1735055575106,0.009,97999.0,97998.0,0.3608]
[1735055575306,0.006,98002.0,97998.0,0.3608]
[1735055575505,0.015,98002.0,98001.0,0.051068]
[1735055576011,0.006,98002.0,98001.0,0.051068]
[1735055576611,0.26191468,98030.0,97998.0,0.3608]
[1735055576806,0.051057,98023.0,98016.0,0.3608]
[1735055577002,0.1698,98029.0,98016.0,0.3608]
[1735055577202,0.00319219,98028.0,98016.0,0.3608]
[1735055577510,0.1698,98029.0,98016.0,0.3608]
[1735055577511,0.00319219,98027.0,98016.0,0.3608]
[1735055577726,0.1698,98029.0,98016.0,0.3608]
[1735055577727,0.00319219,98026.0,98016.0,0.3608]
[1735055577914,0.1698,98029.0,98016.0,0.3608]
[1735055577915,0.00319219,98025.0,98016.0,0.3608]
[1735055578111,0.00319219,98024.0,98016.0,0.3608]
[1735055578311,0.00319219,98023.0,98016.0,0.3608]
[1735055578504,0.002,98028.0,98016.0,0.3608]
[1735055578505,0.00319219,98022.0,98016.0,0.3608]
[1735055578709,0.00319219,98021.0,98016.0,0.3608]
[1735055578910,0.00319219,98020.0,98016.0,0.3608]
[1735055579205,0.00319219,98019.0,98016.0,0.3618]
[1735055579409,0.00319219,98018.0,98016.0,0.3628]
[1735055579605,0.00319217,98017.0,98016.0,0.3628]
[1735055582015,0.00319218,98017.0,98016.0,0.3628]
[1735055582209,0.00619218,98017.0,98016.0,0.3618]
[1735055582405,0.00619218,98017.0,98016.0,0.3628]
[1735055583816,0.00619218,98017.0,98016.0,0.002]
[1735055584017,0.00619218,98017.0,97998.0,0.3608]
[1735055584218,0.15117868,98010.0,97998.0,0.3608]
[1735055584513,0.051065,98007.0,97998.0,0.3608]
[1735055584711,0.00319271,98006.0,97998.0,0.3608]
[1735055584911,0.00319271,98005.0,97998.0,0.3608]
[1735055585116,0.00319271,98004.0,97998.0,0.3608]
[1735055585311,0.00319271,98003.0,97998.0,0.3618]
[1735055585507,0.00319271,98002.0,97998.0,0.3618]
[1735055585715,0.00319271,98001.0,97998.0,0.3618]
[1735055586013,0.00319271,98000.0,97998.0,0.3618]
[1735055586317,0.051068,98002.0,97998.0,0.3628]
[1735055586816,0.060068,98002.0,97998.0,0.3618]
[1735055587016,0.1545,98001.0,97998.0,0.3628]
[1735055587319,0.009,98000.0,97998.0,0.3628]
[1735055588610,0.005,98000.0,97998.0,0.3618]
[1735055588816,0.005,98000.0,97998.0,0.3628]
[1735055589216,0.005,98000.0,97998.0,0.3618]
[1735055589520,0.014,98000.0,97998.0,0.3628]
[1735055590517,0.051069,97999.0,97998.0,0.3628]
[1735055590923,0.014,98000.0,97998.0,0.3628]
[1735055591623,0.009,98000.0,97998.0,0.412869]
[1735055591924,0.013,97999.0,97998.0,0.413869]
[1735055592226,0.013,97999.0,97998.0,0.3628]
[1735055592413,0.004,97999.0,97998.0,0.3618]
[1735055592727,0.004,97999.0,97998.0,0.3628]
[1735055593321,0.009,98000.0,97998.0,0.3618]
[1735055593526,0.013,98000.0,97998.0,0.3628]
[1735055593729,0.009,97999.0,97998.0,0.3638]
[1735055594621,0.013,97999.0,97998.0,0.3638]
[1735055595326,0.004,97999.0,97998.0,0.3618]
[1735055596627,0.013,97999.0,97998.0,0.3628]
[1735055597323,0.013,97999.0,97998.0,0.002]
[1735055600652,0.02537023,97999.0,97998.0,0.002]
[1735055601451,0.051075,97988.0,97987.0,0.3608]
[1735055602752,0.060075,97988.0,97987.0,0.3618]
[1735055603055,0.064075,97988.0,97987.0,0.3618]
[1735055604948,0.064075,97988.0,97987.0,0.001]
[1735055605152,0.064075,97988.0,97978.0,0.3608]
[1735055605153,0.73743924,97988.0,97972.0,0.36245341]
[1735055605358,0.411882,97973.0,97972.0,0.36245341]
[1735055606154,0.3608,97973.0,97959.0,0.00056]
[1735055606352,0.3608,97973.0,97954.0,0.411892]
[1735055606353,0.051087,97964.0,97955.0,0.051092]
[1735055606855,0.051087,97964.0,97954.0,0.3608]
[1735055607053,0.051092,97956.0,97954.0,0.3608]
[1735055607460,0.00319437,97955.0,97954.0,0.3608]
[1735055607853,0.051097,97946.0,97944.0,0.36245341]
[1735055608162,0.36399437,97945.0,97944.0,0.36245341]
[1735055608556,0.36399513,97945.0,97944.0,0.36245341]
[1735055608863,0.00319513,97945.0,97944.0,0.36245341]
[1735055609052,0.3608,97954.0,97953.0,0.051093]
[1735055609947,0.3608,97964.0,97950.0,0.3608]
[1735055610147,0.051081,97976.0,97950.0,0.46091468]
[1735055610347,0.051081,97976.0,97963.0,0.051087]
[1735055610557,0.3608,97977.0,97962.0,0.3608]
[1735055610861,0.051083,97972.0,97962.0,0.3608]
[1735055611358,0.3608,97977.0,97962.0,0.3608]
[1735055611552,0.3608,97977.0,97974.0,0.051082]
[1735055611754,0.3608,97977.0,97950.0,0.73516021]
[1735055612061,0.3608,97967.0,97950.0,0.47395489]
[1735055612267,0.3608,97967.0,97954.0,0.051092]
[1735055612451,0.411886,97967.0,97957.0,0.051091]
[1735055612652,0.051083,97973.0,97957.0,0.10011468]
[1735055613252,0.36432001,97977.0,97969.0,0.051084]
[1735055613557,0.36432001,97977.0,97957.0,0.10011468]
[1735055613558,0.3638,97977.0,97975.0,0.051081]
[1735055613756,0.3638,97977.0,97976.0,0.3098]
[1735055613757,0.003,97977.0,97976.0,0.3098]
[1735055614352,0.009,97977.0,97976.0,0.3098]
[1735055614558,0.006,97977.0,97976.0,0.3098]
[1735055615360,0.00052001,97984.0,97983.0,0.051077]
[1735055615554,0.3608,97996.0,97983.0,0.051077]
[1735055615751,0.411871,97996.0,97983.0,0.051077]
[1735055615960,0.411871,97996.0,97976.0,0.67112]
[1735055616166,0.411871,97996.0,97985.0,0.051076]
[1735055616355,0.051071,97995.0,97985.0,0.051076]
[1735055617963,0.060071,97995.0,97985.0,0.052076]
[1735055618169,0.009,97995.0,97985.0,0.052076]
[1735055618354,0.018,97995.0,97985.0,0.053076]
[1735055621269,0.00319324,97994.0,97985.0,0.053076]
[1735055621464,0.00319324,97993.0,97985.0,0.053076]
[1735055621666,0.00319324,97992.0,97985.0,0.053076]
[1735055621858,0.00319324,97991.0,97985.0,0.053076]
[1735055622059,0.00319324,97990.0,97986.0,0.051076]
[1735055622261,0.00319324,97989.0,97986.0,0.051076]
[1735055622463,0.00319324,97988.0,97986.0,0.051076]
[1735055622665,0.00319324,97987.0,97986.0,0.051076]
[1735055623864,0.00619324,97987.0,97986.0,0.052076]
[1735055624456,0.00619324,97987.0,97986.0,0.002]
[1735055624762,0.01519324,97987.0,97986.0,0.002]
[1735055627373,0.01519324,97987.0,97986.0,0.053076]
[1735055627562,0.01519324,97987.0,97986.0,0.002]
[1735055627959,0.01519328,97987.0,97986.0,0.002]
[1735055628364,0.012,97987.0,97986.0,0.002]
[1735055628670,0.01519324,97987.0,97986.0,0.002]
[1735055629164,0.37599324,97987.0,97986.0,0.002]
[1735055630969,0.37599311,97987.0,97986.0,0.002]
[1735055631670,0.37599311,97987.0,97986.0,0.01420006]
[1735055632676,0.37599311,97987.0,97986.0,0.06527606]
[1735055632973,0.01519311,97987.0,97986.0,0.06527606]
[1735055635277,0.01519311,97987.0,97986.0,0.42607606]
[1735055635573,0.3608,97996.0,97994.0,0.051071]
[1735055635766,0.3608,97996.0,97995.0,0.1576]
[1735055636775,0.3638,97996.0,97995.0,0.1576]
[1735055637176,0.3728,97996.0,97995.0,0.1586]
[1735055638165,0.3698,97996.0,97995.0,0.1596]
[1735055640478,0.12185422,98028.0,97995.0,0.4596]
[1735055640665,0.12185422,98028.0,98026.0,0.051054]
[1735055640871,0.00041,98037.0,98027.0,0.3354]
[1735055641172,0.00041,98037.0,98035.0,0.05105]
[1735055642378,0.008,98036.0,98035.0,0.0643181]
[1735055644177,0.36221,98037.0,98035.0,0.0132681]
[1735055644381,0.21385,98036.0,98035.0,0.001]
[1735055644978,0.21385,98036.0,98028.0,0.36177694]
[1735055645171,0.051053,98029.0,98028.0,0.36177694]
[1735055645372,0.1638,98036.0,98026.0,0.051055]
[1735055645574,0.051054,98027.0,98026.0,0.051055]
[1735055645973,0.051054,98027.0,98026.0,0.0630821]
[1735055646173,0.051054,98027.0,98026.0,0.0120271]
[1735055646374,0.051056,98025.0,98020.0,0.30088057]
[1735055646576,0.3328,98035.0,98020.0,0.31296762]
[1735055646771,0.051056,98024.0,98022.0,0.051057]
[1735055648775,0.051056,98024.0,98022.0,0.29158015]
[1735055648986,0.00319181,98031.0,98022.0,0.24052315]
[1735055649275,0.051053,98031.0,98022.0,0.24052315]
[1735055649477,0.3608,98058.0,98032.0,0.051052]
[1735055649680,0.051033,98068.0,98047.0,0.3608]
[1735055649878,0.051033,98068.0,98067.0,0.411833]
[1735055650278,0.051033,98068.0,98067.0,0.3608]
[1735055651377,0.053033,98068.0,98067.0,0.3618]
[1735055651583,0.057033,98068.0,98067.0,0.3618]
[1735055652579,0.006,98068.0,98067.0,0.3618]
[1735055661584,0.00919061,98068.0,98067.0,0.3618]
[1735055662887,0.00519061,98068.0,98067.0,0.3618]
[1735055663083,0.00719061,98068.0,98067.0,0.3618]
[1735055663695,0.00519061,98068.0,98067.0,0.3618]
[1735055663995,0.00719061,98068.0,98067.0,0.3618]
[1735055665484,0.00519061,98068.0,98067.0,0.3608]
[1735055665683,0.00519061,98068.0,98067.0,0.3618]
[1735055665887,0.00719061,98068.0,98067.0,0.3618]
[1735055666594,0.0071907,98068.0,98067.0,0.001]
[1735055666795,0.0582237,98068.0,98059.0,0.3608]
[1735055667088,0.0031907,98067.0,98059.0,0.3608]
[1735055667289,0.0031907,98066.0,98059.0,0.3608]
[1735055667490,0.0031907,98065.0,98059.0,0.3608]
[1735055667691,0.051037,98060.0,98059.0,0.3608]
[1735055667995,0.0542277,98060.0,98059.0,0.3608]
[1735055669191,0.051037,98060.0,98059.0,0.3608]
[1735055669488,0.054228,98060.0,98059.0,0.3608]
[1735055669688,0.056228,98060.0,98059.0,0.3608]
[1735055669891,0.059228,98060.0,98059.0,0.3608]
[1735055670994,0.008191,98060.0,98059.0,0.3608]
[1735055671201,0.008191,98060.0,98059.0,0.5336]
[1735055671386,0.008191,98060.0,98059.0,0.7012]
[1735055672298,0.0081906,98060.0,98059.0,0.71296335]
[1735055675397,0.00819061,98060.0,98059.0,0.71296335]
[1735055676500,0.3608,98079.0,98071.0,0.051031]
[1735055676694,0.05103,98074.0,98071.0,0.051031]
[1735055676896,0.05103,98074.0,98069.0,0.46147468]
[1735055677095,0.1751,98095.0,98069.0,0.3608]
[1735055677397,0.051022,98089.0,98083.0,0.411825]
[1735055677998,0.051025,98084.0,98083.0,0.3608]
[1735055678896,0.051025,98084.0,98083.0,0.3618]
[1735055679200,0.051025,98084.0,98083.0,0.3628]
[1735055682403,0.051025,98084.0,98083.0,0.3618]
[1735055682604,0.1751,98095.0,98083.0,0.413825]
[1735055682800,0.15231777,98099.0,98091.0,0.3608]
[1735055683000,0.15231777,98099.0,98091.0,0.411821]
[1735055683205,0.15231777,98101.0,98091.0,0.3608]
[1735055683408,0.15231777,98101.0,98100.0,0.051016]
[1735055684306,0.15231777,98101.0,98100.0,0.220816]
[1735055684703,0.2184477,98125.0,98100.0,0.520816]
[1735055684895,0.2138421,98148.0,98141.0,0.050995]
[1735055685205,0.2138421,98148.0,98124.0,0.3608]
[1735055685206,0.2138421,98148.0,98146.0,0.050992]
[1735055685603,0.2138421,98148.0,98139.0,0.3608]
[1735055685604,0.3608,98158.0,98139.0,0.3608]
[1735055685806,0.01190834,98161.0,98153.0,0.3608]
[1735055686106,0.220783,98164.0,98153.0,0.3608]
[1735055686697,0.220783,98164.0,98153.0,0.411788]
[1735055686901,0.1641,98179.0,98153.0,0.3608]
[1735055687206,0.050979,98172.0,98157.0,0.050986]
[1735055687508,0.050979,98172.0,98155.0,0.10011468]
[1735055688205,0.050983,98164.0,98155.0,0.10011468]
[1735055688412,0.01137926,98168.0,98161.0,0.17956085]
[1735055688603,0.00318772,98164.0,98161.0,0.17956085]
[1735055688905,0.00318772,98163.0,98161.0,0.17956085]
[1735055689105,0.00318772,98164.0,98161.0,0.17956085]
[1735055689514,0.00318772,98164.0,98161.0,0.18056085]
[1735055689710,0.05417072,98164.0,98161.0,0.001]
[1735055689910,0.00318772,98163.0,98161.0,0.001]
[1735055690113,0.05417076,98164.0,98161.0,0.001]
[1735055690615,0.00318774,98163.0,98161.0,0.001]
[1735055690813,0.05417074,98164.0,98161.0,0.001]
[1735055691020,0.05417074,98164.0,98161.0,0.002]
[1735055691614,0.050984,98162.0,98161.0,0.001]
[1735055691813,0.050984,98162.0,98161.0,0.002]
[1735055692719,0.050984,98162.0,98161.0,0.001]
[1735055693016,0.050984,98162.0,98161.0,0.002]
[1735055693418,0.05417178,98162.0,98161.0,0.002]
[1735055694122,0.050984,98162.0,98161.0,0.002]
[1735055695015,0.00318778,98164.0,98161.0,0.002]
[1735055696024,0.050981,98168.0,98161.0,0.002]
[1735055696224,0.05417068,98164.0,98161.0,0.002]
[1735055699123,0.00318768,98163.0,98161.0,0.002]
[1735055699327,0.05417068,98164.0,98161.0,0.002]
[1735055700328,0.00318768,98164.0,98161.0,0.002]
[1735055702128,0.01167007,98174.0,98161.0,0.002]
[1735055702832,0.01167007,98174.0,98161.0,0.3628]
[1735055703036,0.36136001,98180.0,98161.0,0.3628]
[1735055703329,0.050976,98179.0,98161.0,0.3628]
[1735055703526,0.3608,98180.0,98161.0,0.3628]
[1735055703527,0.05098,98170.0,98161.0,0.3628]
[1735055703729,0.0111936,98180.0,98170.0,0.05098]
[1735055703929,0.1698,98184.0,98170.0,0.05098]
[1735055704126,0.050975,98180.0,98170.0,0.15109468]
[1735055705130,0.050975,98180.0,98170.0,0.30969468]
[1735055705525,0.1698,98184.0,98170.0,0.25871468]
[1735055705934,0.1698,98184.0,98178.0,0.3608]
[1735055706132,0.1599,98190.0,98178.0,0.3608]
[1735055706328,0.3608,98188.0,98171.0,0.1611]
[1735055706629,0.050974,98181.0,98171.0,0.1611]
[1735055706835,0.050975,98179.0,98170.0,0.1596]
[1735055708236,0.00318724,98178.0,98170.0,0.1596]
[1735055708426,0.050975,98179.0,98170.0,0.1596]
[1735055708931,0.05415924,98185.0,98170.0,0.1596]
[1735055709125,0.00318724,98184.0,98181.0,0.050974]
[1735055709326,0.00318724,98183.0,98181.0,0.050974]
[1735055709534,0.00318724,98182.0,98175.0,0.10011468]
[1735055709741,0.00318724,98187.0,98178.0,0.3608]
[1735055709929,0.00318724,98186.0,98178.0,0.3608]
[1735055710130,0.00318724,98185.0,98178.0,0.3608]
[1735055710438,0.01149392,98191.0,98178.0,0.3608]
[1735055710634,0.1,98200.0,98190.0,0.3608]
[1735055710933,0.1,98200.0,98191.0,0.1691]
[1735055711135,0.1,98200.0,98191.0,0.3268]
[1735055711326,0.1,98200.0,98192.0,0.050969]
[1735055711927,0.00318662,98199.0,98193.0,0.050968]
[1735055712238,0.00318662,98198.0,98197.0,0.050966]
[1735055712728,0.41801468,98230.0,98203.0,0.050962]
[1735055712729,0.050955,98218.0,98203.0,0.050962]
[1735055712922,0.050956,98217.0,98206.0,0.3608]
[1735055713121,0.050954,98220.0,98206.0,0.3608]
[1735055713322,0.37244133,98225.0,98206.0,0.3608]
[1735055713528,0.37192132,98225.0,98208.0,0.05096]
[1735055713733,0.3608,98225.0,98210.0,0.10011468]
[1735055713937,0.050955,98218.0,98211.0,0.050958]
[1735055714235,0.050955,98218.0,98206.0,0.3608]
[1735055714236,0.10011468,98221.0,98206.0,0.3608]
[1735055714541,0.10011468,98221.0,98206.0,0.30017277]
[1735055714542,0.411761,98207.0,98206.0,0.30017277]
[1735055715237,0.411761,98207.0,98197.0,0.001]
[1735055715440,0.050965,98198.0,98197.0,0.001]
[1735055716037,0.050969,98192.0,98191.0,0.29983486]
[1735055716935,0.05097,98189.0,98187.0,0.18005524]
[1735055720041,0.1616,98198.0,98186.0,0.18005524]
[1735055720238,0.050971,98187.0,98186.0,0.18005524]
[1735055721635,0.050971,98187.0,98185.0,0.18005524]
[1735055722737,0.050972,98186.0,98184.0,0.18158294]
[1735055723043,0.050968,98193.0,98184.0,0.18158294]
[1735055723441,0.3608,98207.0,98192.0,0.3608]
[1735055723739,0.37178115,98207.0,98193.0,0.050968]
[1735055724046,0.05097,98189.0,98188.0,0.24007366]
[1735055724635,0.05415721,98189.0,98188.0,0.24007366]
[1735055725243,0.00318721,98189.0,98188.0,0.24007366]
[1735055725541,0.00318721,98189.0,98187.0,0.3608]
[1735055725746,0.00318721,98188.0,98187.0,0.3608]
[1735055727046,0.00318653,98188.0,98187.0,0.685]
[1735055728041,0.00318653,98188.0,98187.0,0.88988244]
[1735055728836,0.00318656,98188.0,98187.0,0.88988244]
[1735055730046,0.01114455,98210.0,98187.0,0.88988244]
[1735055730232,0.050964,98201.0,98200.0,0.10011468]
[1735055730438,0.050964,98201.0,98199.0,0.3608]
[1735055730639,0.05096,98209.0,98199.0,0.3608]
[1735055730846,0.16844473,98216.0,98208.0,0.3608]
[1735055731144,0.05096,98209.0,98208.0,0.3608]
[1735055731345,0.050956,98217.0,98208.0,0.3608]
[1735055731533,0.050956,98217.0,98209.0,0.3124]
[1735055731736,0.050956,98216.0,98209.0,0.3124]
[1735055732332,0.050956,98216.0,98213.0,0.24022908]
[1735055733645,0.050956,98216.0,98209.0,0.3124]
[1735055734345,0.050956,98216.0,98213.0,0.001]
[1735055734748,0.050956,98216.0,98210.0,0.050959]
[1735055734947,0.050956,98216.0,98210.0,0.25567007]
[1735055735146,0.3608,98226.0,98210.0,0.25567007]
[1735055735147,0.050957,98214.0,98210.0,0.25567007]
[1735055736048,0.050957,98214.0,98211.0,0.20471107]
[1735055736739,0.050957,98214.0,98213.0,0.001]
[1735055737142,0.050957,98214.0,98211.0,0.25566907]
[1735055737143,0.050957,98214.0,98212.0,0.050958]
[1735055737645,0.050957,98214.0,98212.0,0.25566907]
[1735055737851,0.050957,98214.0,98213.0,0.001]
[1735055738348,0.050957,98214.0,98212.0,0.25666907]
[1735055738649,0.050954,98221.0,98216.0,0.050956]
[1735055738848,0.05095,98228.0,98220.0,0.411754]
[1735055739148,0.05095,98228.0,98220.0,0.3608]
[1735055739356,0.3608,98258.0,98227.0,0.3608]
[1735055739540,0.050939,98250.0,98247.0,0.25116936]
[1735055739735,0.050937,98254.0,98246.0,0.05094]
[1735055739940,0.050937,98253.0,98246.0,0.05094]
[1735055740147,0.3608,98264.0,98245.0,0.51726]
[1735055740346,0.050934,98259.0,98252.0,0.050937]
[1735055740745,0.050934,98259.0,98255.0,0.17977503]
[1735055741048,0.05093,98266.0,98256.0,0.050935]
[1735055741248,0.050931,98265.0,98256.0,0.15104968]
[1735055741842,0.050931,98265.0,98257.0,0.3608]
[1735055742050,0.00318444,98264.0,98258.0,0.23970004]
[1735055742251,0.00318444,98263.0,98261.0,0.050933]
[1735055742551,0.00318444,98262.0,98261.0,0.050933]
[1735055743254,0.05095891,98290.0,98279.0,0.050923]
[1735055743455,0.05095891,98290.0,98281.0,0.050922]
[1735055744139,0.050924,98278.0,98270.0,0.10011468]
[1735055744348,0.050925,98277.0,98270.0,0.10011468]
[1735055744555,0.3608,98286.0,98275.0,0.1790819]
[1735055744755,0.050923,98281.0,98275.0,0.1790819]
[1735055745052,0.050922,98283.0,98275.0,0.1790819]
[1735055745254,0.050922,98282.0,98275.0,0.1790819]
[1735055745851,0.050919,98288.0,98281.0,0.001]
[1735055746049,0.01098268,98290.0,98281.0,0.001]
[1735055746251,4.091e-05,98290.0,98285.0,0.3608]
[1735055747651,4.091e-05,98290.0,98286.0,0.05092]
[1735055748046,4.091e-05,98290.0,98285.0,0.3628]
[1735055748047,4.091e-05,98290.0,98285.0,0.37364698]
[1735055748242,0.1,98300.0,98285.0,0.37364698]
[1735055748450,0.1,98300.0,98293.0,0.3608]
[1735055748747,0.1,98300.0,98297.0,0.050914]
[1735055750247,0.050913,98299.0,98290.0,0.10011468]
[1735055750449,0.1,98300.0,98290.0,0.10011468]
[1735055750450,0.411717,98291.0,98290.0,0.10011468]
[1735055750744,0.1644,98298.0,98281.0,0.10011468]
[1735055750951,0.050918,98289.0,98288.0,0.10011468]
[1735055751158,0.05092,98286.0,98280.0,0.19012194]
[1735055751356,0.3608,98293.0,98280.0,0.19012194]
[1735055751559,0.3608,98293.0,98279.0,0.10011468]
[1735055751748,0.050925,98276.0,98274.0,0.3608]
[1735055752144,0.3608,98293.0,98274.0,0.3608]
[1735055752455,0.050915,98296.0,98290.0,0.001]
[1735055752649,0.050917,98292.0,98291.0,0.3608]
[1735055753254,0.050918,98289.0,98288.0,0.001]
[1735055753761,0.411717,98292.0,98291.0,0.001]
[1735055753958,0.411717,98292.0,98291.0,0.002]
[1735055754162,0.1,98300.0,98299.0,0.050913]
[1735055754361,0.1,98300.0,98299.0,0.411713]
[1735055755358,0.3608,98325.0,98299.0,0.6608]
[1735055755567,0.3608,98325.0,98324.0,0.0509]
[1735055756453,0.3608,98352.0,98341.0,0.050891]
[1735055756658,0.3608,98352.0,98342.0,0.10011468]
[1735055756968,0.050888,98347.0,98340.0,0.10011468]
[1735055757154,0.3608,98352.0,98340.0,0.10011468]
[1735055757355,0.3608,98352.0,98348.0,0.050887]
[1735055758059,0.05089,98345.0,98342.0,0.006]
[1735055758364,0.050886,98351.0,98343.0,0.05089]
[1735055758764,0.3608,98352.0,98343.0,0.05089]
[1735055759067,0.3608,98352.0,98342.0,0.006]
[1735055759566,0.05089,98344.0,98342.0,0.007]
[1735055759965,0.05089,98344.0,98342.0,0.006]
[1735055760162,0.05089,98344.0,98343.0,0.001]
[1735055760561,0.05089,98344.0,98320.0,0.14907484]
[1735055760562,0.41169,98344.0,98320.0,0.14907484]
[1735055760766,0.3608,98327.0,98312.0,0.3307]
[1735055760958,0.050899,98326.0,98312.0,0.164]
[1735055761160,0.050906,98313.0,98310.0,0.36136]
[1735055761361,0.050906,98313.0,98310.0,0.3608]
[1735055761567,0.050902,98320.0,98310.0,0.3608]
[1735055761766,0.1664,98326.0,98310.0,0.50987484]
[1735055761966,0.050905,98315.0,98310.0,0.3608]
[1735055762160,0.1664,98326.0,98310.0,0.3608]
[1735055762359,0.1664,98326.0,98302.0,0.1790819]
[1735055762360,0.050911,98304.0,98302.0,0.5398819]
[1735055762555,0.050911,98304.0,98302.0,0.1790819]
[1735055763269,0.050911,98304.0,98300.0,0.00152585]
[1735055763270,0.050912,98301.0,98300.0,0.00152585]
[1735055764663,0.050914,98297.0,98296.0,0.1790819]
[1735055765775,0.050914,98297.0,98270.0,0.14907484]
[1735055765776,0.050921,98283.0,98275.0,0.1790819]
[1735055766673,0.3608,98290.0,98275.0,0.1790819]
[1735055766674,0.050925,98276.0,98275.0,0.1790819]
[1735055767071,0.050926,98274.0,98273.0,0.3608]
[1735055767373,0.05410982,98274.0,98273.0,0.3608]
[1735055767575,0.05410986,98274.0,98273.0,0.3608]
[1735055768070,0.05093,98266.0,98265.0,0.1790819]
[1735055768267,0.05411386,98266.0,98265.0,0.1790819]
[1735055768677,0.05411386,98266.0,98263.0,0.00152642]
[1735055768678,0.05411386,98266.0,98263.0,0.24122646]
[1735055768970,0.050931,98264.0,98263.0,0.23970004]
[1735055769169,0.05411486,98264.0,98263.0,0.23970004]
[1735055770176,0.050935,98257.0,98256.0,0.17976313]
[1735055770373,0.41491886,98257.0,98256.0,0.17976313]
[1735055770567,0.41491997,98257.0,98256.0,0.17976313]
[1735055771878,0.050938,98251.0,98245.0,0.3608]
[1735055772178,0.05412297,98251.0,98245.0,0.3608]
[1735055773177,0.05612297,98251.0,98245.0,0.3608]
[1735055773667,0.05612297,98251.0,98243.0,0.17976313]
[1735055774562,0.05612297,98251.0,98234.0,0.17976313]
[1735055774769,0.05412297,98251.0,98234.0,0.17976313]
[1735055774966,0.05512297,98251.0,98234.0,0.17976313]
[1735055775478,0.00918497,98251.0,98241.0,0.3608]
[1735055775663,0.002,98251.0,98250.0,0.412518]
[1735055776373,0.050929,98268.0,98250.0,0.36158]
[1735055776571,0.40820108,98293.0,98267.0,0.7216]
[1735055776774,0.212718,98289.0,98288.0,0.3608]
[1735055778675,0.050929,98268.0,98267.0,0.3608]
[1735055779170,0.050932,98263.0,98262.0,0.17941805]
[1735055780170,0.050935,98256.0,98254.0,0.3608]
[1735055781481,0.050935,98256.0,98246.0,0.3608]
[1735055781482,0.050935,98256.0,98246.0,0.50987484]
[1735055781778,0.002,98263.0,98246.0,0.50987484]
[1735055781977,0.05094,98248.0,98246.0,0.3608]
[1735055782976,0.05094,98248.0,98246.0,0.3638]
[1735055784981,0.05094,98248.0,98246.0,0.3608]
[1735055786086,0.01085686,98255.0,98246.0,0.3608]
[1735055786279,0.1658,98263.0,98254.0,0.3608]
[1735055786485,0.1658,98263.0,98262.0,0.3608]
[1735055787799,0.16898454,98263.0,98262.0,0.3608]
[1735055788276,0.16898454,98263.0,98254.0,0.3608]
[1735055788277,0.050936,98255.0,98254.0,0.3608]
[1735055788480,0.05412054,98255.0,98254.0,0.3608]
[1735055789481,0.05612054,98255.0,98254.0,0.3608]
[1735055790890,0.05412054,98255.0,98254.0,0.3608]
[1735055791184,0.05612054,98255.0,98254.0,0.3608]
[1735055792585,0.05712054,98255.0,98254.0,0.3608]
[1735055793289,0.05712099,98255.0,98254.0,0.3608]
[1735055795192,0.00618494,98255.0,98254.0,0.3608]
[1735055795585,0.05712094,98255.0,98254.0,0.3608]
[1735055796094,0.00618494,98255.0,98254.0,0.3608]
[1735055796290,0.3608,98288.0,98254.0,0.3608]
[1735055796492,0.3608,98288.0,98279.0,0.3608]
[1735055797191,0.01073527,98290.0,98279.0,0.5228]
[1735055797395,0.05092,98287.0,98279.0,0.5228]
[1735055798298,0.002,98290.0,98279.0,0.5238]
[1735055798489,0.05092,98285.0,98279.0,0.5238]
[1735055798987,0.05092,98285.0,98283.0,0.29826721]
[1735055800491,0.002,98287.0,98283.0,0.001]
[1735055801194,0.002,98285.0,98283.0,0.001]
[1735055802090,0.05092,98286.0,98283.0,0.001]
[1735055802290,0.05092,98286.0,98283.0,0.002]
[1735055802686,0.05092,98285.0,98283.0,0.001]
[1735055802897,0.050921,98284.0,98283.0,0.002]
[1735055805396,0.052921,98284.0,98283.0,0.002]
[1735055806397,0.052921,98284.0,98283.0,0.24241095]
[1735055807894,0.052921,98284.0,98283.0,0.002]
[1735055808286,0.05610512,98284.0,98283.0,0.002]
[1735055810794,0.05610514,98284.0,98283.0,0.002]
[1735055813306,0.05610513,98284.0,98283.0,0.002]
[1735055815503,0.35610513,98284.0,98283.0,0.002]
[1735055815707,0.35610513,98284.0,98271.0,0.24041095]
[1735055815708,0.050927,98272.0,98271.0,0.24041095]
[1735055816012,0.05411113,98272.0,98263.0,0.29826721]
[1735055816310,0.050931,98264.0,98263.0,0.29826721]
[1735055816496,0.05411513,98264.0,98263.0,0.29826721]
[1735055816699,0.05411513,98264.0,98262.0,0.29826721]
[1735055817004,0.00318413,98263.0,98262.0,0.29826721]
[1735055817705,0.30318413,98263.0,98262.0,0.29826721]
[1735055817904,0.30318413,98263.0,98254.0,0.36020733]
[1735055817905,0.050937,98252.0,98251.0,0.30103161]
[1735055818097,0.41492113,98252.0,98251.0,0.30103161]
[1735055819017,0.41692113,98252.0,98251.0,0.27417681]
[1735055819202,0.71692113,98252.0,98251.0,0.27417681]
[1735055819603,0.050942,98244.0,98243.0,0.00074]
[1735055819909,0.05412738,98244.0,98243.0,0.00074]
[1735055821212,0.05512738,98244.0,98243.0,0.00074]
[1735055821720,0.05612738,98244.0,98243.0,0.00074]
[1735055822009,0.0561274,98244.0,98243.0,0.00074]
[1735055822201,0.0051854,98244.0,98243.0,0.00074]
[1735055822404,0.002,98244.0,98243.0,0.00074]
[1735055822608,0.09957966,98270.0,98243.0,0.051682]
[1735055822808,0.09957966,98270.0,98266.0,0.3608]
[1735055823016,0.01088779,98271.0,98266.0,0.3608]
[1735055823214,0.15207338,98274.0,98266.0,0.3608]
[1735055823914,0.01081883,98277.0,98267.0,0.050929]